[Event "*** Titled Tuesday Blitz"]
[Site "Chess.com"]
[Date "2018.05.01"]
[Round "5"]
[White "Shtembuliak"]
[Black "FastChance"]
[Result "0-1"]
[WhiteElo "2671"]
[BlackElo "2662"]
[TimeControl "180+2"]
[EndTime "14:09:08 PDT"]
[Termination "FastChance won by resignation"]

1. Nf3 {[%clk 0:03:01.9]} 1... Nf6 {[%clk 0:02:58.6]} 2. c4 {[%clk 0:03:03]}
2... c5 {[%clk 0:02:58.7]} 3. Nc3 {[%clk 0:03:04.4]} 3... b6 {[%clk 0:02:57.7]}
4. g3 {[%clk 0:02:58.4]} 4... Bb7 {[%clk 0:02:58.4]} 5. Bg2 {[%clk 0:02:59.9]}
5... e6 {[%clk 0:02:58.7]} 6. O-O {[%clk 0:03:01]} 6... Be7 {[%clk 0:02:58.3]}
7. d4 {[%clk 0:03:02.4]} 7... cxd4 {[%clk 0:02:59.5]} 8. Qxd4 {[%clk 0:03:03.3]}
8... d6 {[%clk 0:03:00.6]} 9. Bg5 {[%clk 0:03:03.3]} 9... a6 {[%clk 0:02:54.5]}
10. Bxf6 {[%clk 0:03:02.8]} 10... Bxf6 {[%clk 0:02:55.2]} 11. Qf4 {[%clk
0:03:04.3]} 11... O-O {[%clk 0:02:53.6]} 12. Rfd1 {[%clk 0:03:03.6]} 12... Be7
{[%clk 0:02:52.2]} 13. Ne4 {[%clk 0:03:05]} 13... Bxe4 {[%clk 0:02:53.4]} 14.
Qxe4 {[%clk 0:03:06.8]} 14... Ra7 {[%clk 0:02:54.9]} 15. Rac1 {[%clk 0:03:07.4]}
15... Qc8 {[%clk 0:02:53.3]} 16. Nd4 {[%clk 0:03:07.7]} 16... Rc7 {[%clk
0:02:51.1]} 17. Qd3 {[%clk 0:02:52.9]} 17... b5 {[%clk 0:02:34.1]} 18. b3 {[%clk
0:02:15.9]} 18... d5 {[%clk 0:02:33.4]} 19. Bh3 {[%clk 0:01:51.4]} 19... bxc4
{[%clk 0:02:20]} 20. bxc4 {[%clk 0:01:51.3]} 20... dxc4 {[%clk 0:02:17]} 21. Qe4
{[%clk 0:01:50.7]} 21... Ba3 {[%clk 0:01:48.5]} 22. Nxe6 {[%clk 0:01:34.7]}
22... Bxc1 {[%clk 0:01:45.8]} 23. Nxc7 {[%clk 0:01:33.2]} 23... Qxc7 {[%clk
0:01:27.5]} 24. Rxc1 {[%clk 0:01:34.1]} 24... c3 {[%clk 0:01:19.2]} 25. Qe3
{[%clk 0:01:30.9]} 25... Qa5 {[%clk 0:01:01.9]} 26. Rc2 {[%clk 0:01:22.6]} 26...
Rd8 {[%clk 0:00:53.5]} 27. Qxc3 {[%clk 0:01:21.3]} 27... Qh5 {[%clk 0:00:41.2]}
28. Kg2 {[%clk 0:01:17.1]} 28... g6 {[%clk 0:00:37.9]} 29. Qf6 {[%clk
0:01:13.7]} 29... Qd5+ {[%clk 0:00:37.5]} 30. f3 {[%clk 0:01:13.1]} 30... Re8
{[%clk 0:00:30]} 31. Qc3 {[%clk 0:00:52.3]} 31... Qb5 {[%clk 0:00:20.4]} 32. Qb2
{[%clk 0:00:48]} 32... Qa4 {[%clk 0:00:16.9]} 33. Rd2 {[%clk 0:00:45.5]} 33...
Qa5 {[%clk 0:00:14.5]} 34. Qc2 {[%clk 0:00:37.4]} 34... Qb5 {[%clk 0:00:13.9]}
35. Qd3 {[%clk 0:00:35.7]} 35... Qb4 {[%clk 0:00:14.5]} 36. Rc2 {[%clk
0:00:34.5]} 36... a5 {[%clk 0:00:13.1]} 37. e4 {[%clk 0:00:29.2]} 37... a4
{[%clk 0:00:13.8]} 38. Qc3 {[%clk 0:00:24]} 38... Qb6 {[%clk 0:00:14.4]} 39. Rb2
{[%clk 0:00:23.6]} 39... Qa6 {[%clk 0:00:14.1]} 40. Kg1 {[%clk 0:00:20.8]} 40...
a3 {[%clk 0:00:15.2]} 41. Rd2 {[%clk 0:00:20.1]} 41... Qb6+ {[%clk 0:00:14.3]}
42. Qd4 {[%clk 0:00:21.2]} 42... Qb1+ {[%clk 0:00:14.8]} 43. Bf1 {[%clk
0:00:22.7]} 43... Nc6 {[%clk 0:00:13.6]} 44. Qd7 {[%clk 0:00:23]} 44... Rd8
{[%clk 0:00:15]} 45. Qxd8+ {[%clk 0:00:19.7]} 45... Nxd8 {[%clk 0:00:16]} 46.
Rxd8+ {[%clk 0:00:21]} 46... Kg7 {[%clk 0:00:17.7]} 47. Rd2 {[%clk 0:00:20.8]}
47... Qe1 {[%clk 0:00:16.5]} 48. Rf2 {[%clk 0:00:20.7]} 48... Qe3 {[%clk
0:00:17.5]} 49. Kg2 {[%clk 0:00:21.9]} 49... h5 {[%clk 0:00:18.8]} 50. h4 {[%clk
0:00:21.9]} 50... Kf6 {[%clk 0:00:19.3]} 51. Bc4 {[%clk 0:00:22.9]} 51... Qc3
{[%clk 0:00:20]} 52. Bb3 {[%clk 0:00:24.1]} 52... Ke5 {[%clk 0:00:21.1]} 53. Rc2
{[%clk 0:00:24.6]} 53... Qd3 {[%clk 0:00:19.4]} 54. Rc5+ {[%clk 0:00:23.4]}
54... Kf6 {[%clk 0:00:20.1]} 55. e5+ {[%clk 0:00:23.8]} 55... Kg7 {[%clk
0:00:18.2]} 56. Rc2 {[%clk 0:00:18.5]} 56... Qe3 {[%clk 0:00:18.8]} 57. Re2
{[%clk 0:00:19.2]} 57... Qxe2+ {[%clk 0:00:19.3]} 58. Kg1 {[%clk 0:00:10.6]}
58... Qxf3 {[%clk 0:00:19.4]} 0-1

[Event "*** Titled Tuesday Blitz"]
[Site "Chess.com"]
[Date "2018.05.01"]
[Round "5"]
[White "Arystanner23"]
[Black "vovachesss"]
[Result "0-1"]
[WhiteElo "2391"]
[BlackElo "2396"]
[TimeControl "180+2"]
[EndTime "14:09:12 PDT"]
[Termination "vovachesss won by checkmate"]

1. e4 {[%clk 0:03:01.9]} 1... e5 {[%clk 0:02:59.2]} 2. Nf3 {[%clk 0:03:02.4]}
2... d5 {[%clk 0:02:55.8]} 3. d4 {[%clk 0:03:00.1]} 3... dxe4 {[%clk 0:02:55.9]}
4. Nxe5 {[%clk 0:03:00.4]} 4... Bd6 {[%clk 0:02:55.3]} 5. Nc4 {[%clk 0:02:47.8]}
5... Nf6 {[%clk 0:02:55.7]} 6. Bg5 {[%clk 0:02:44.7]} 6... O-O {[%clk
0:02:56.3]} 7. Nc3 {[%clk 0:02:43.1]} 7... Re8 {[%clk 0:02:57.2]} 8. Be2 {[%clk
0:02:42.9]} 8... Nc6 {[%clk 0:02:57.8]} 9. Qd2 {[%clk 0:02:41]} 9... h6 {[%clk
0:02:56.7]} 10. Bh4 {[%clk 0:02:40.9]} 10... a6 {[%clk 0:02:47.3]} 11. Ne3
{[%clk 0:02:39.8]} 11... Be7 {[%clk 0:02:44.7]} 12. O-O-O {[%clk 0:02:32.5]}
12... b5 {[%clk 0:02:45]} 13. g4 {[%clk 0:02:21.6]} 13... Bd7 {[%clk 0:02:01.1]}
14. d5 {[%clk 0:02:09.3]} 14... Ne5 {[%clk 0:01:17.6]} 15. Qd4 {[%clk
0:02:07.8]} 15... b4 {[%clk 0:01:12.2]} 16. Qxe5 {[%clk 0:02:01.4]} 16... Nxg4
{[%clk 0:00:46.1]} 17. Bxe7 {[%clk 0:01:35.4]} 17... Rxe7 {[%clk 0:00:44.7]} 18.
Qg3 {[%clk 0:01:35]} 18... Nxe3 {[%clk 0:00:40.9]} 19. Qxe3 {[%clk 0:01:36]}
19... bxc3 {[%clk 0:00:39.2]} 20. Qxc3 {[%clk 0:01:37.9]} 20... f6 {[%clk
0:00:25.6]} 21. Rhg1 {[%clk 0:01:37.6]} 21... Re5 {[%clk 0:00:26.1]} 22. d6
{[%clk 0:01:35]} 22... c5 {[%clk 0:00:19.6]} 23. Bc4+ {[%clk 0:01:32.8]} 23...
Kh8 {[%clk 0:00:18.5]} 24. h4 {[%clk 0:01:33.9]} 24... Rb8 {[%clk 0:00:17.7]}
25. Qg3 {[%clk 0:01:34.3]} 25... Qf8 {[%clk 0:00:18.2]} 26. Rd2 {[%clk
0:01:09.3]} 26... Rb4 {[%clk 0:00:18.4]} 27. b3 {[%clk 0:01:07.7]} 27... a5
{[%clk 0:00:17]} 28. f4 {[%clk 0:01:04.1]} 28... exf3 {[%clk 0:00:11.7]} 29.
Qxf3 {[%clk 0:01:05]} 29... Rf5 {[%clk 0:00:08.2]} 30. Qe3 {[%clk 0:01:01.8]}
30... Re5 {[%clk 0:00:07.7]} 31. Qf3 {[%clk 0:01:02.4]} 31... Rf5 {[%clk
0:00:08.6]} 32. Qe2 {[%clk 0:01:00.9]} 32... Re5 {[%clk 0:00:08.9]} 33. Qg2
{[%clk 0:01:01.8]} 33... a4 {[%clk 0:00:08.6]} 34. Rd3 {[%clk 0:00:59.5]} 34...
axb3 {[%clk 0:00:09.1]} 35. axb3 {[%clk 0:01:00.9]} 35... Rb6 {[%clk 0:00:04.5]}
36. Rg3 {[%clk 0:01:01.2]} 36... g5 {[%clk 0:00:03.3]} 37. hxg5 {[%clk
0:01:02.2]} 37... fxg5 {[%clk 0:00:05.1]} 38. Rf1 {[%clk 0:00:55.4]} 38... Qg7
{[%clk 0:00:05.6]} 39. Qa8+ {[%clk 0:00:45.7]} 39... Re8 {[%clk 0:00:05.7]} 40.
Qa5 {[%clk 0:00:46.5]} 40... Rxd6 {[%clk 0:00:06.1]} 41. Kb1 {[%clk 0:00:39.7]}
41... Bc6 {[%clk 0:00:06.4]} 42. Qxc5 {[%clk 0:00:19.8]} 42... Ra8 {[%clk
0:00:07.5]} 43. c3 {[%clk 0:00:20.6]} 43... Be4+ {[%clk 0:00:07.5]} 44. Kb2
{[%clk 0:00:20.9]} 44... Rd2+ {[%clk 0:00:07.8]} 45. Kc1 {[%clk 0:00:22.1]}
45... Rc2+ {[%clk 0:00:08.7]} 46. Kb1 {[%clk 0:00:22.4]} 46... Rxc3+ {[%clk
0:00:08.4]} 47. Kb2 {[%clk 0:00:21.6]} 47... Rc2+ {[%clk 0:00:09.2]} 48. Kb1
{[%clk 0:00:22.7]} 48... Qb2# {[%clk 0:00:10.9]} 0-1

[Event "*** Titled Tuesday Blitz"]
[Site "Chess.com"]
[Date "2018.05.01"]
[Round "5"]
[White "Bryakin_Mikhail"]
[Black "Jbd735"]
[Result "1-0"]
[WhiteElo "2606"]
[BlackElo "2339"]
[TimeControl "180+2"]
[EndTime "14:09:16 PDT"]
[Termination "Bryakin_Mikhail won on time"]

1. d4 {[%clk 0:03:01.4]} 1... d5 {[%clk 0:02:59.5]} 2. Nf3 {[%clk 0:03:01.6]}
2... Nf6 {[%clk 0:02:59]} 3. c4 {[%clk 0:03:03.1]} 3... c6 {[%clk 0:02:59]} 4.
g3 {[%clk 0:03:04.5]} 4... e6 {[%clk 0:02:59.3]} 5. Bg2 {[%clk 0:03:05.8]} 5...
dxc4 {[%clk 0:02:59.8]} 6. O-O {[%clk 0:03:05.6]} 6... b5 {[%clk 0:02:59.8]} 7.
Ne5 {[%clk 0:03:07.1]} 7... Bb7 {[%clk 0:02:57.2]} 8. b3 {[%clk 0:03:08]} 8...
cxb3 {[%clk 0:02:55.4]} 9. axb3 {[%clk 0:03:09.9]} 9... Qb6 {[%clk 0:02:52]} 10.
Nc3 {[%clk 0:03:06.8]} 10... Nbd7 {[%clk 0:02:49.7]} 11. Bb2 {[%clk 0:03:02.6]}
11... Rd8 {[%clk 0:02:09.2]} 12. Qc2 {[%clk 0:02:43.5]} 12... Be7 {[%clk
0:02:08.2]} 13. Nd3 {[%clk 0:02:36.8]} 13... O-O {[%clk 0:02:02.9]} 14. b4
{[%clk 0:02:36.3]} 14... Ra8 {[%clk 0:01:05.7]} 15. Nc5 {[%clk 0:02:04.4]} 15...
Nxc5 {[%clk 0:00:54.7]} 16. dxc5 {[%clk 0:02:02.9]} 16... Qc7 {[%clk 0:00:55.7]}
17. Ne4 {[%clk 0:01:30.1]} 17... Nxe4 {[%clk 0:00:40.9]} 18. Qxe4 {[%clk
0:01:21.4]} 18... a5 {[%clk 0:00:33.8]} 19. Qg4 {[%clk 0:01:11.7]} 19... e5
{[%clk 0:00:33.2]} 20. Qf5 {[%clk 0:01:00.2]} 20... Bf6 {[%clk 0:00:30.2]} 21.
bxa5 {[%clk 0:00:57]} 21... Rxa5 {[%clk 0:00:16.4]} 22. Rxa5 {[%clk 0:00:58.9]}
22... Qxa5 {[%clk 0:00:17.3]} 23. Bxe5 {[%clk 0:01:00.8]} 23... Bxe5 {[%clk
0:00:13.8]} 24. Qxe5 {[%clk 0:01:02.7]} 24... b4 {[%clk 0:00:13.1]} 25. Be4
{[%clk 0:00:58.8]} 25... g6 {[%clk 0:00:06.9]} 26. Ra1 {[%clk 0:00:55.2]} 26...
Qd8 {[%clk 0:00:05.5]} 27. Qb2 {[%clk 0:00:52.9]} 27... Re8 {[%clk 0:00:04.1]}
28. Bd3 {[%clk 0:00:53.7]} 28... Bc8 {[%clk 0:00:03.5]} 29. Qxb4 {[%clk
0:00:54.5]} 29... Qd5 {[%clk 0:00:03.8]} 30. Qc4 {[%clk 0:00:45.5]} 30... Qe5
{[%clk 0:00:04]} 31. Ra7 {[%clk 0:00:36.4]} 31... Be6 {[%clk 0:00:03.8]} 32. Qc1
{[%clk 0:00:34.8]} 32... Bd5 {[%clk 0:00:04.5]} 33. Ra4 {[%clk 0:00:23.4]} 33...
Qh5 {[%clk 0:00:04.9]} 34. f3 {[%clk 0:00:22.3]} 34... Qe5 {[%clk 0:00:05.3]}
35. Kf2 {[%clk 0:00:17.4]} 35... Rb8 {[%clk 0:00:05.5]} 36. Qe3 {[%clk
0:00:17.4]} 36... Qf6 {[%clk 0:00:05.8]} 37. Qd4 {[%clk 0:00:18.4]} 37... Qe7
{[%clk 0:00:06]} 38. h4 {[%clk 0:00:19.7]} 38... Re8 {[%clk 0:00:06.1]} 39. h5
{[%clk 0:00:20.1]} 39... Qe6 {[%clk 0:00:06.7]} 40. h6 {[%clk 0:00:20.7]} 40...
f6 {[%clk 0:00:07.1]} 41. Ra7 {[%clk 0:00:22.1]} 41... Qe5 {[%clk 0:00:07.4]}
42. Rg7+ {[%clk 0:00:22.5]} 42... Kh8 {[%clk 0:00:07.3]} 43. Qxe5 {[%clk
0:00:22.3]} 43... fxe5 {[%clk 0:00:07.1]} 44. Ke3 {[%clk 0:00:21.6]} 44... Rf8
{[%clk 0:00:06.5]} 45. Rc7 {[%clk 0:00:22.6]} 45... Re8 {[%clk 0:00:06.9]} 46.
Be4 {[%clk 0:00:23.9]} 46... Kg8 {[%clk 0:00:06.6]} 47. Rd7 {[%clk 0:00:24.3]}
47... Bxe4 {[%clk 0:00:06.8]} 48. Kxe4 {[%clk 0:00:26.2]} 48... Rf8 {[%clk
0:00:06.9]} 49. Rg7+ {[%clk 0:00:27.2]} 49... Kh8 {[%clk 0:00:07.7]} 50. Rc7
{[%clk 0:00:29.1]} 50... Re8 {[%clk 0:00:07.6]} 51. Rxc6 {[%clk 0:00:30.4]}
51... g5 {[%clk 0:00:08]} 52. Rc7 {[%clk 0:00:31.1]} 52... g4 {[%clk 0:00:08]}
53. fxg4 {[%clk 0:00:32]} 53... Rg8 {[%clk 0:00:09.4]} 54. Rg7 {[%clk
0:00:31.5]} 54... Rc8 {[%clk 0:00:09]} 55. Re7 {[%clk 0:00:32]} 55... Rg8 {[%clk
0:00:08.7]} 56. g5 {[%clk 0:00:33.5]} 56... Rc8 {[%clk 0:00:07.1]} 57. c6 {[%clk
0:00:34.6]} 57... Rd8 {[%clk 0:00:05.6]} 58. c7 {[%clk 0:00:35]} 58... Rd4+
{[%clk 0:00:02.1]} 59. Kxe5 {[%clk 0:00:36]} 1-0

[Event "*** Titled Tuesday Blitz"]
[Site "Chess.com"]
[Date "2018.05.01"]
[Round "5"]
[White "Oleksandr_Bortnyk"]
[Black "GrigorGrigorov"]
[Result "1-0"]
[WhiteElo "2790"]
[BlackElo "2660"]
[TimeControl "180+2"]
[EndTime "14:09:17 PDT"]
[Termination "Oleksandr_Bortnyk won by resignation"]

1. d4 {[%clk 0:03:01.9]} 1... Nf6 {[%clk 0:03:00.4]} 2. Nc3 {[%clk 0:03:02.2]}
2... d5 {[%clk 0:02:59.3]} 3. Bf4 {[%clk 0:03:02.4]} 3... c6 {[%clk 0:02:54.4]}
4. e3 {[%clk 0:03:03.2]} 4... g6 {[%clk 0:02:52.3]} 5. h4 {[%clk 0:03:03.6]}
5... h5 {[%clk 0:02:47]} 6. Nf3 {[%clk 0:03:04.5]} 6... Bg4 {[%clk 0:02:46.3]}
7. Be2 {[%clk 0:03:04.8]} 7... Bxf3 {[%clk 0:02:45.9]} 8. Bxf3 {[%clk 0:02:52]}
8... Bg7 {[%clk 0:02:46.9]} 9. Qe2 {[%clk 0:02:50.5]} 9... e6 {[%clk 0:02:45.2]}
10. O-O-O {[%clk 0:02:49.7]} 10... Nbd7 {[%clk 0:02:46.6]} 11. a3 {[%clk
0:02:47.7]} 11... b5 {[%clk 0:02:47.3]} 12. e4 {[%clk 0:02:44.6]} 12... Nb6
{[%clk 0:02:42.1]} 13. Bg5 {[%clk 0:02:20.7]} 13... Bh6 {[%clk 0:02:41.2]} 14.
Kb1 {[%clk 0:01:57.7]} 14... Bxg5 {[%clk 0:02:35.3]} 15. hxg5 {[%clk 0:01:59.6]}
15... Nxe4 {[%clk 0:02:24.2]} 16. Bxe4 {[%clk 0:00:59.6]} 16... dxe4 {[%clk
0:02:23.6]} 17. Nxe4 {[%clk 0:01:01.5]} 17... Nd5 {[%clk 0:02:23.7]} 18. g4
{[%clk 0:01:02.9]} 18... h4 {[%clk 0:02:21.5]} 19. f4 {[%clk 0:00:54.5]} 19...
Qc7 {[%clk 0:02:12.2]} 20. f5 {[%clk 0:00:49.3]} 20... O-O-O {[%clk 0:02:10.6]}
21. fxe6 {[%clk 0:00:50.1]} 21... Nf4 {[%clk 0:02:03.2]} 22. Qf2 {[%clk
0:00:32.7]} 22... Nxe6 {[%clk 0:02:02]} 23. d5 {[%clk 0:00:33.9]} 23... cxd5
{[%clk 0:01:50.7]} 24. Nc3 {[%clk 0:00:34]} 24... d4 {[%clk 0:01:14.6]} 25. Nxb5
{[%clk 0:00:34.5]} 25... Qb7 {[%clk 0:01:10.4]} 26. a4 {[%clk 0:00:26.3]} 26...
h3 {[%clk 0:01:00.2]} 27. Qg3 {[%clk 0:00:22.5]} 27... Qb8 {[%clk 0:00:43.8]}
28. Qf3 {[%clk 0:00:23]} 28... Qb7 {[%clk 0:00:39.2]} 29. Qg3 {[%clk 0:00:23.7]}
29... Qb8 {[%clk 0:00:40.3]} 30. Qd3 {[%clk 0:00:12.2]} 30... a6 {[%clk
0:00:27.5]} 31. Qc4+ {[%clk 0:00:08.1]} 31... Kb7 {[%clk 0:00:28.4]} 32. Nxd4
{[%clk 0:00:08.8]} 32... Nxd4 {[%clk 0:00:24.3]} 33. Rxd4 {[%clk 0:00:10.7]}
33... Rxd4 {[%clk 0:00:25.3]} 34. Qxd4 {[%clk 0:00:12.6]} 34... h2 {[%clk
0:00:26.4]} 35. Qd5+ {[%clk 0:00:13.2]} 35... Ka7 {[%clk 0:00:25.9]} 36. Qxf7+
{[%clk 0:00:15.1]} 36... Ka8 {[%clk 0:00:19.8]} 37. Qf6 {[%clk 0:00:08.3]} 37...
Rh3 {[%clk 0:00:15.6]} 38. Qxa6+ {[%clk 0:00:08.6]} 38... Qa7 {[%clk 0:00:17]}
39. Qc8+ {[%clk 0:00:08.7]} 39... Qb8 {[%clk 0:00:17.7]} 40. Qa6+ {[%clk
0:00:07.2]} 40... Qa7 {[%clk 0:00:18.7]} 41. Qxa7+ {[%clk 0:00:06]} 41... Kxa7
{[%clk 0:00:19.5]} 42. b4 {[%clk 0:00:07.5]} 42... Rh4 {[%clk 0:00:18.2]} 43. c3
{[%clk 0:00:06.1]} 43... Kb6 {[%clk 0:00:16.2]} 44. Kb2 {[%clk 0:00:07.4]} 44...
Kc6 {[%clk 0:00:17.7]} 45. Kb3 {[%clk 0:00:08.1]} 45... Kd5 {[%clk 0:00:16.7]}
46. a5 {[%clk 0:00:09.5]} 46... Rh8 {[%clk 0:00:13.2]} 47. a6 {[%clk 0:00:10.2]}
47... Kc6 {[%clk 0:00:13.6]} 48. c4 {[%clk 0:00:11.4]} 48... Kb6 {[%clk
0:00:13.1]} 49. b5 {[%clk 0:00:12.5]} 49... Ka5 {[%clk 0:00:12.6]} 50. Kc3
{[%clk 0:00:10.8]} 50... Kb6 {[%clk 0:00:11.5]} 51. Kd4 {[%clk 0:00:12.2]} 51...
Rh4 {[%clk 0:00:12]} 52. Kd5 {[%clk 0:00:08.1]} 52... Rxg4 {[%clk 0:00:10.1]}
53. Rxh2 {[%clk 0:00:08.3]} 53... Rxg5+ {[%clk 0:00:10.2]} 54. Kd6 {[%clk
0:00:09.1]} 1-0

[Event "*** Titled Tuesday Blitz"]
[Site "Chess.com"]
[Date "2018.05.01"]
[Round "5"]
[White "juniortay"]
[Black "GameOverBro"]
[Result "1/2-1/2"]
[WhiteElo "2356"]
[BlackElo "2415"]
[TimeControl "180+2"]
[EndTime "14:09:21 PDT"]
[Termination "Game drawn by stalemate"]

1. e4 {[%clk 0:03:01.9]} 1... d6 {[%clk 0:03:00.5]} 2. Nc3 {[%clk 0:03:01.9]}
2... Nf6 {[%clk 0:03:01.6]} 3. f4 {[%clk 0:03:02.6]} 3... d5 {[%clk 0:03:02.7]}
4. e5 {[%clk 0:03:02.4]} 4... d4 {[%clk 0:03:04]} 5. Nce2 {[%clk 0:03:00.9]}
5... Nd5 {[%clk 0:03:04.5]} 6. Nxd4 {[%clk 0:02:51.3]} 6... Nxf4 {[%clk
0:03:04.9]} 7. Ngf3 {[%clk 0:02:51.8]} 7... g5 {[%clk 0:03:04.8]} 8. d3 {[%clk
0:02:37.1]} 8... Bg7 {[%clk 0:02:47.3]} 9. Bxf4 {[%clk 0:02:23.2]} 9... gxf4
{[%clk 0:02:46.9]} 10. Qe2 {[%clk 0:02:24.7]} 10... c5 {[%clk 0:02:39.4]} 11.
Nb3 {[%clk 0:02:17.6]} 11... Nc6 {[%clk 0:02:34.1]} 12. O-O-O {[%clk 0:02:11.9]}
12... Nd4 {[%clk 0:02:00.8]} 13. Nfxd4 {[%clk 0:02:06.2]} 13... cxd4 {[%clk
0:02:01]} 14. Qe4 {[%clk 0:02:03.8]} 14... h5 {[%clk 0:01:45.3]} 15. Kb1 {[%clk
0:02:00]} 15... Bg4 {[%clk 0:01:45.9]} 16. Re1 {[%clk 0:02:00]} 16... Rc8 {[%clk
0:01:27.2]} 17. Qxd4 {[%clk 0:01:45.4]} 17... Qxd4 {[%clk 0:01:15.3]} 18. Nxd4
{[%clk 0:01:44.3]} 18... Rc5 {[%clk 0:01:16.9]} 19. h3 {[%clk 0:01:25.4]} 19...
Rxe5 {[%clk 0:00:47.9]} 20. Rxe5 {[%clk 0:01:02]} 20... Bxe5 {[%clk 0:00:49.8]}
21. hxg4 {[%clk 0:00:59.2]} 21... Bxd4 {[%clk 0:00:48.2]} 22. Rxh5 {[%clk
0:00:58.4]} 22... Rg8 {[%clk 0:00:38.1]} 23. Be2 {[%clk 0:00:56.8]} 23... e6
{[%clk 0:00:36.1]} 24. c3 {[%clk 0:00:47.4]} 24... Bb6 {[%clk 0:00:25.7]} 25.
Bf3 {[%clk 0:00:47.1]} 25... Ke7 {[%clk 0:00:25]} 26. Kc2 {[%clk 0:00:47.3]}
26... Bc7 {[%clk 0:00:22.6]} 27. d4 {[%clk 0:00:47.5]} 27... b6 {[%clk
0:00:23.2]} 28. Kd3 {[%clk 0:00:48]} 28... Bd6 {[%clk 0:00:24.2]} 29. Ke4 {[%clk
0:00:46.7]} 29... Rc8 {[%clk 0:00:23.2]} 30. Rh7 {[%clk 0:00:44.7]} 30... Kf6
{[%clk 0:00:23.6]} 31. g5+ {[%clk 0:00:42.5]} 31... Kg6 {[%clk 0:00:22.8]} 32.
Rh5 {[%clk 0:00:34.5]} 32... b5 {[%clk 0:00:21]} 33. Rh6+ {[%clk 0:00:17.6]}
33... Kg7 {[%clk 0:00:21.5]} 34. Bh5 {[%clk 0:00:16.7]} 34... a5 {[%clk
0:00:19.1]} 35. Rf6 {[%clk 0:00:17]} 35... Rf8 {[%clk 0:00:18.8]} 36. b3 {[%clk
0:00:17]} 36... Be7 {[%clk 0:00:19.6]} 37. Rxf4 {[%clk 0:00:16.5]} 37... Bxg5
{[%clk 0:00:20.8]} 38. Rf3 {[%clk 0:00:17.2]} 38... Rd8 {[%clk 0:00:21.2]} 39.
c4 {[%clk 0:00:17.2]} 39... f5+ {[%clk 0:00:21.1]} 40. Kd3 {[%clk 0:00:14.8]}
40... bxc4+ {[%clk 0:00:23]} 41. bxc4 {[%clk 0:00:15.3]} 41... Kf6 {[%clk
0:00:24.7]} 42. Rf1 {[%clk 0:00:14.1]} 42... e5 {[%clk 0:00:25.7]} 43. d5 {[%clk
0:00:14.9]} 43... e4+ {[%clk 0:00:26.6]} 44. Kd4 {[%clk 0:00:16.3]} 44... Bd2
{[%clk 0:00:26.4]} 45. c5 {[%clk 0:00:16.8]} 45... a4 {[%clk 0:00:25.8]} 46. Bg4
{[%clk 0:00:15.1]} 46... Kg5 {[%clk 0:00:25.1]} 47. Bxf5 {[%clk 0:00:15.7]}
47... e3 {[%clk 0:00:26.5]} 48. Bd3 {[%clk 0:00:13.4]} 48... Re8 {[%clk
0:00:25.7]} 49. d6 {[%clk 0:00:13.8]} 49... e2 {[%clk 0:00:22.9]} 50. Bxe2
{[%clk 0:00:14.7]} 50... Rxe2 {[%clk 0:00:24.8]} 51. d7 {[%clk 0:00:16.3]} 51...
Ba5 {[%clk 0:00:26.1]} 52. c6 {[%clk 0:00:16.7]} 52... Rxg2 {[%clk 0:00:26.9]}
53. Rb1 {[%clk 0:00:14.5]} 53... Kf6 {[%clk 0:00:26.3]} 54. Rb5 {[%clk
0:00:13.9]} 54... Bc7 {[%clk 0:00:27.7]} 55. Rb7 {[%clk 0:00:14.6]} 55... Be5+
{[%clk 0:00:27.5]} 56. Kd5 {[%clk 0:00:15.1]} 56... Rd2+ {[%clk 0:00:28.6]} 57.
Ke4 {[%clk 0:00:15.8]} 57... Rd4+ {[%clk 0:00:29.5]} 58. Ke3 {[%clk 0:00:16.4]}
58... Ke6 {[%clk 0:00:30.9]} 59. c7 {[%clk 0:00:15.5]} 59... Bxc7 {[%clk
0:00:30]} 60. Rxc7 {[%clk 0:00:17.4]} 60... Rxd7 {[%clk 0:00:31.4]} 61. Rxd7
{[%clk 0:00:18.4]} 61... Kxd7 {[%clk 0:00:33.3]} 62. Kd4 {[%clk 0:00:20]} 62...
Kc6 {[%clk 0:00:34.8]} 63. Kc4 {[%clk 0:00:21.9]} 63... Kb6 {[%clk 0:00:36.6]}
64. Kb4 {[%clk 0:00:23.7]} 64... Ka6 {[%clk 0:00:37.8]} 65. Kxa4 {[%clk
0:00:25.6]} 65... Ka7 {[%clk 0:00:39.3]} 66. Kb4 {[%clk 0:00:27.5]} 66... Ka8
{[%clk 0:00:41.2]} 67. Kb5 {[%clk 0:00:29.2]} 67... Kb8 {[%clk 0:00:43.1]} 68.
Kb6 {[%clk 0:00:30.7]} 68... Ka8 {[%clk 0:00:45]} 69. a4 {[%clk 0:00:32]} 69...
Kb8 {[%clk 0:00:46.9]} 70. a5 {[%clk 0:00:33.7]} 70... Ka8 {[%clk 0:00:48.8]}
71. a6 {[%clk 0:00:35.3]} 71... Kb8 {[%clk 0:00:50.7]} 72. a7+ {[%clk
0:00:36.6]} 72... Ka8 {[%clk 0:00:52.6]} 73. Ka6 {[%clk 0:00:38.2]} 1/2-1/2